bitfinex-derivatives/quotes_ETHF0:USTF0_20250606
["timestamp","ask_amount","ask_price","bid_price","bid_amount"]
[1749173281185,1.50885003,2424.8,2424.5,0.82449]
[1749173281384,1.38840978,2424.7,2424.6,1.3729]
[1749173281585,2.21286978,2424.7,2424.6,1.3729]
[1749173282993,1.38840978,2424.7,2424.6,2.19739]
[1749173283188,1.38840978,2424.7,2424.6,1.3729]
[1749173283387,1.38840978,2424.7,2424.6,2.19739]
[1749173283582,0.00619003,2424.8,2424.6,2.19739]
[1749173283785,0.83062003,2424.8,2424.6,2.19739]
[1749173283979,0.00619003,2424.8,2424.6,2.19739]
[1749173284191,0.82446,2424.7,2424.6,1.3729]
[1749173284385,0.82446,2424.7,2424.6,0.6809]
[1749173284790,2.21315223,2424.7,2424.6,0.6809]
[1749173285184,0.00619003,2424.8,2424.6,1.50537]
[1749173285384,0.83064003,2424.8,2424.6,0.6809]
[1749173285889,0.83062003,2424.8,2424.6,1.50538]
[1749173286085,0.83062003,2424.8,2424.6,0.6809]
[1749173286490,0.82446,2424.7,2424.6,0.6809]
[1749173287191,0.82453,2424.5,2424.4,0.70009003]
[1749173287391,0.82453,2424.5,2424.4,0.00619003]
[1749173289389,2.22302713,2424.5,2424.4,0.00619003]
[1749173293584,0.82466,2424.1,2424.0,5.001]
[1749173294194,1.50386,2424.1,2424.0,5.001]
[1749173294884,1.50386,2424.1,2424.0,6.3358]
[1749173295189,1.50386,2424.1,2424.0,1.3348]
[1749173295787,2.07811514,2424.1,2423.8,5.00719003]
[1749173296095,4.03253,2423.9,2423.8,0.00619003]
[1749173296290,5.43144514,2423.9,2423.8,0.00619003]
[1749173297792,0.82467,2424.1,2423.9,0.82473]
[1749173297989,0.82467,2424.1,2424.0,2.715]
[1749173298190,2.22340817,2424.1,2424.0,2.715]
[1749173299100,1.39873817,2424.1,2424.0,2.715]
[1749173299894,0.82465,2424.2,2424.0,2.715]
[1749173300095,1.3999117,2424.1,2424.0,1.3286]
[1749173300491,2.2245717,2424.1,2424.0,1.3286]
[1749173301698,1.3999117,2424.1,2424.0,2.1533]
[1749173301899,1.3999117,2424.1,2424.0,1.3286]
[1749173302101,2.2245717,2424.1,2424.0,1.3286]
[1749173302299,1.3999117,2424.1,2424.0,2.1533]
[1749173302695,0.82456,2424.4,2424.1,0.82463]
[1749173302898,1.40039225,2424.3,2424.0,1.3286]
[1749173303201,1.40036725,2424.2,2424.1,0.82466]
[1749173303501,2.22499725,2424.2,2424.0,2.15328]
[1749173303699,0.82466,2424.1,2424.0,1.3286]
[1749173303892,0.82466,2424.1,2424.0,0.6455]
[1749173304100,0.82473,2423.9,2423.8,0.00619003]
[1749173304297,5.43305711,2423.9,2423.8,0.00619003]
[1749173304695,6.71555711,2423.9,2423.8,0.00619003]
[1749173306603,1.40052711,2423.9,2423.8,0.83096003]
[1749173306999,1.40052711,2423.9,2423.8,0.00619003]
[1749173309397,2.22525711,2423.9,2423.8,0.00619003]
[1749173313805,1.40052711,2423.9,2423.8,0.83095003]
[1749173314105,1.39825391,2423.9,2423.8,0.00619003]
[1749173314305,1.39825391,2423.9,2423.8,0.83095003]
[1749173314701,4.03245,2424.2,2423.9,0.8247]
[1749173314913,1.39845473,2424.1,2423.9,0.8247]
[1749173315099,1.39845473,2424.0,2423.9,0.8247]
[1749173315406,1.39845473,2424.0,2423.9,0.82473]
[1749173315600,1.39845473,2424.0,2423.8,0.00619003]
[1749173315905,3.2078,2424.2,2423.8,0.00619003]
[1749173316105,0.82473,2423.9,2423.8,0.00619003]
[1749173316401,2.22363106,2423.9,2423.8,0.00619003]
[1749173329421,5.43143106,2423.9,2423.8,0.00619003]
[1749173336924,0.82487,2423.5,2423.4,4.998]
[1749173337521,0.8249,2423.4,2423.3,0.644]
[1749173337722,0.82497,2423.3,2423.1,0.6351]
[1749173337924,1.39890106,2423.2,2423.1,0.6351]
[1749173338326,1.39890106,2423.2,2423.1,1.9128]
[1749173339526,1.39890106,2423.2,2423.1,3.408]
[1749173339726,1.4015448,2423.3,2423.1,7.581]
[1749173340028,0.00619003,2423.4,2423.3,0.82494]
[1749173340226,1.40775989,2423.4,2423.3,0.82494]
[1749173340623,1.40775989,2423.4,2423.3,9.03274]
[1749173340825,3.2078,2424.2,2423.4,2.06219]
[1749173341035,3.8745,2424.2,2423.8,0.82475]
[1749173341332,0.8247,2424.0,2423.9,2.6806]
[1749173341527,3.8745,2424.2,2423.9,2.6806]
[1749173341721,0.82466,2424.1,2424.0,1.3446]
[1749173342434,3.2078,2424.2,2424.1,0.82466]
[1749173342628,3.2078,2424.2,2424.0,2.16927]
[1749173342833,4.03243,2424.2,2424.0,1.3446]
[1749173343534,3.2078,2424.2,2424.0,2.16928]
[1749173343727,4.03243,2424.2,2424.0,2.16928]
[1749173343924,4.03243,2424.2,2424.0,1.3446]
[1749173344230,3.2078,2424.2,2424.0,2.1693]
[1749173344432,3.2078,2424.2,2424.1,0.82466]
[1749173344633,3.2078,2424.2,2424.1,1.2993]
[1749173345431,3.2078,2424.2,2424.1,2.12396]
[1749173347338,0.83079003,2424.3,2424.1,2.12396]
[1749173348031,0.83079003,2424.3,2424.1,1.2993]
[1749173348234,0.83079003,2424.3,2424.1,2.12396]
[1749173348433,0.00619003,2424.3,2424.2,0.82463]
[1749173349734,0.82463,2424.2,2424.1,1.2993]
[1749173350433,3.21399003,2424.3,2423.9,8.8362]
[1749173350434,0.8247,2424.0,2423.9,8.8362]
[1749173350839,3.21399003,2424.3,2423.9,8.8362]
[1749173351041,3.21399003,2424.3,2424.0,1.3513]
[1749173351342,0.82463,2424.2,2424.0,2.83298]
[1749173351638,0.82463,2424.2,2424.1,1.3513]
[1749173351941,3.21399003,2424.3,2424.1,1.3513]
[1749173352140,0.00619003,2424.3,2424.2,0.82463]
[1749173353944,0.00619003,2424.3,2424.2,5.82463]
[1749173355038,0.00619003,2424.3,2424.2,5.81563]
[1749173355545,0.83078003,2424.3,2424.2,4.991]
[1749173355747,0.83078003,2424.3,2424.2,6.3669]
[1749173356240,0.83078003,2424.3,2424.2,1.3759]
[1749173356440,0.83078003,2424.3,2424.2,6.3669]
[1749173356645,2.21928075,2424.3,2424.2,6.3669]
[1749173356833,2.91198075,2424.3,2424.2,6.3669]
[1749173357039,2.91198075,2424.3,2424.2,4.991]
[1749173359542,2.08739075,2424.3,2423.6,3.2078]
[1749173359748,3.2078,2424.0,2423.6,3.2078]
[1749173359936,0.82478,2423.8,2423.5,8.48975]
[1749173360240,3.2078,2423.6,2423.5,6.9984]
[1749173360943,0.82481,2423.7,2423.5,6.9984]
[1749173361441,0.82478,2423.8,2423.6,0.82483]
[1749173361648,0.82478,2423.8,2423.5,7.82325]
[1749173361845,0.82478,2423.8,2423.6,1.3335]
[1749173362341,3.2078,2424.2,2424.1,0.82466]
[1749173362544,3.2078,2424.2,2424.0,5.81567]
[1749173362745,3.2078,2424.2,2424.0,4.991]
[1749173362964,3.2078,2424.2,2424.1,1.3335]
[1749173363249,2.21402621,2424.2,2424.1,1.3335]
[1749173363442,2.21404905,2424.2,2424.1,6.3245]
[1749173363647,2.21404905,2424.2,2424.1,4.991]
[1749173364949,0.82475,2423.9,2423.8,4.991]
[1749173365344,2.21480394,2423.9,2423.8,4.991]
[1749173365548,1.39005394,2423.9,2423.5,1.48995]
[1749173365845,0.82476,2423.8,2423.6,0.82483]
[1749173366048,0.8248,2423.7,2423.5,0.6651]
[1749173366249,0.6363,2423.6,2423.5,0.6651]
[1749173366447,0.6363,2423.6,2423.5,1.48997]
[1749173366654,1.46113,2423.6,2423.5,0.6651]
[1749173366951,1.46113,2423.6,2423.5,1.9497]
[1749173367752,0.6363,2423.6,2423.5,1.9497]
[1749173369253,2.02781635,2423.6,2423.5,1.9497]
[1749173369455,0.6363,2423.6,2423.5,1.9497]
[1749173369651,0.6363,2423.6,2423.5,2.77457]
[1749173369851,0.6363,2423.6,2423.5,7.76557]
[1749173370053,5.23550776,2423.6,2423.2,0.6319]
[1749173370245,5.23550776,2423.6,2423.3,5.81593]
[1749173370246,2.21628776,2423.5,2423.3,5.81593]
[1749173370464,2.21628776,2423.5,2423.3,4.991]
[1749173370465,0.82488,2423.5,2423.3,4.991]
[1749173370957,0.8249,2423.4,2423.3,4.991]
[1749173371350,0.8249,2423.4,2423.1,28.8133]
[1749173371351,1.39067501,2423.4,2423.1,28.8133]
[1749173371549,0.82497,2423.2,2423.1,3.2078]
[1749173371859,0.825,2423.1,2423.0,4.99119003]
[1749173372152,0.6431,2423.1,2423.0,4.99119003]
[1749173372351,1.4681,2423.1,2423.0,4.99119003]
[1749173374556,0.6431,2423.1,2423.0,5.81623003]
[1749173374857,3.2078,2423.4,2423.0,11.27499003]
[1749173375152,0.82495,2423.3,2423.1,2.10879]
[1749173375356,0.82495,2423.3,2423.2,4.986]
[1749173375559,0.82497,2423.2,2423.1,1.2838]
[1749173375745,0.82497,2423.2,2423.1,6.2698]
[1749173378259,1.50215,2423.3,2423.1,7.09479]
[1749173378656,1.50215,2423.3,2423.2,1.3394]
[1749173382060,0.82497,2423.2,2423.1,4.986]
[1749173382262,1.50216,2423.3,2423.1,5.811]
[1749173382558,1.50215,2423.3,2423.1,5.811]
[1749173382767,0.82497,2423.2,2423.1,4.986]
[1749173383057,1.50216,2423.3,2423.1,5.81099]
[1749173383461,1.50216,2423.3,2423.1,7.18109]
[1749173385062,0.6772,2423.3,2423.2,0.82497]
[1749173385263,0.6772,2423.3,2423.1,1.3701]
[1749173385264,1.50215,2423.3,2423.1,1.3701]
[1749173385559,1.50215,2423.3,2423.1,7.1811]
[1749173388263,0.6772,2423.3,2423.2,2.19127]
[1749173388563,2.06648859,2423.3,2423.2,2.83147]
[1749173388761,2.89141859,2423.3,2423.2,2.0065]
[1749173389368,2.89178923,2423.3,2423.2,2.0065]
[1749173389964,1.38965923,2423.3,2423.2,2.83147]
[1749173390465,0.82489,2423.5,2423.3,0.82493]
[1749173390657,1.39033206,2423.4,2423.3,2.19023]
[1749173390964,2.21523206,2423.4,2423.3,2.19023]
[1749173391360,1.39033206,2423.4,2423.3,2.19023]
[1749173391555,0.82487,2423.5,2423.3,1.3653]
[1749173391760,0.82487,2423.5,2423.4,1.3653]
[1749173391964,2.21535937,2423.5,2423.4,1.3653]
[1749173393065,2.21535937,2423.5,2423.4,2.1902]
[1749173393265,1.39048937,2423.5,2423.4,2.1902]
[1749173393469,1.39048937,2423.5,2423.4,7.1762]
[1749173393860,4.03261,2423.7,2423.6,0.82483]
[1749173394060,5.42441264,2423.7,2423.5,1.2693]
[1749173394264,1.39180264,2423.6,2423.5,2.74377]
[1749173400773,3.2078,2424.1,2424.0,0.8247]
[1749173401072,4.60147954,2424.1,2423.8,4.986]
[1749173401271,0.8248,2423.7,2423.6,1.3813]
[1749173401476,2.21884085,2423.7,2423.6,4.98]
[1749173401771,0.82483,2423.7,2423.6,4.98]
[1749173402572,2.21955898,2423.7,2423.6,4.98]
[1749173402767,5.42735898,2423.7,2423.6,4.98]
[1749173402967,0.82485,2423.6,2423.5,4.98]
[1749173403266,2.87847898,2423.6,2423.5,4.98]
[1749173404072,2.05362898,2423.6,2423.5,5.80487]
[1749173404274,3.2078,2424.0,2423.8,0.82476]
[1749173404467,2.0487768,2423.9,2423.8,0.82476]
[1749173404767,1.3940768,2423.9,2423.8,5.80476]
[1749173405171,0.6547,2424.2,2424.1,0.82466]
[1749173405365,0.00619003,2424.3,2424.2,0.82463]
[1749173405566,0.00619003,2424.3,2424.2,2.21203]
[1749173405774,2.2254289,2424.3,2424.2,1.3874]
[1749173406176,1.4008389,2424.3,2424.2,2.21203]
[1749173406473,0.00619003,2424.3,2424.2,2.21203]
[1749173406870,2.22372071,2424.3,2424.2,1.3874]
[1749173407171,2.22372071,2424.3,2424.1,4.98]
[1749173407172,1.39913071,2424.3,2424.1,4.98]
[1749173407372,2.21757068,2424.2,2424.1,4.98]
[1749173407570,0.82475,2423.9,2423.7,9.43608]
[1749173407776,0.82475,2423.9,2423.8,4.98]
[1749173408270,2.21743917,2423.9,2423.8,4.98]
[1749173408871,0.82472,2424.0,2423.8,4.98]
[1749173409370,1.48403,2423.9,2423.8,4.98]
[1749173409570,0.6593,2423.9,2423.8,4.98]
[1749173409776,0.82479,2423.8,2423.5,5.80484]
[1749173409977,0.82481,2423.7,2423.5,5.80484]
[1749173410178,0.82479,2423.8,2423.5,5.80484]
[1749173410380,0.8248,2423.7,2423.5,7.17524]
[1749173410781,0.6593,2423.9,2423.7,0.82478]
[1749173410975,0.6593,2423.9,2423.8,0.82476]
[1749173411277,2.051523,2423.9,2423.7,0.82477]
[1749173411481,1.392223,2423.8,2423.7,0.82477]
[1749173411779,1.392223,2423.8,2423.7,2.19517]
[1749173412279,1.392223,2423.8,2423.7,1.3704]
[1749173412776,2.216983,2423.8,2423.7,1.3704]
[1749173413483,2.216983,2423.8,2423.7,2.1952]
[1749173413780,2.216983,2423.8,2423.7,1.3704]
[1749173413973,2.21800729,2423.8,2423.7,1.3704]
[1749173415489,1.39324729,2423.8,2423.7,2.1952]
[1749173415783,0.6593,2423.9,2423.7,2.1952]
[1749173415784,0.6593,2423.9,2423.8,0.82476]
[1749173415977,3.2078,2424.0,2423.9,0.82473]
[1749173416281,4.60135204,2424.0,2423.9,0.82473]
[1749173416473,4.60135204,2424.0,2423.9,2.10953]
[1749173416679,3.2078,2424.0,2423.9,2.10953]
[1749173417277,4.0325,2424.0,2423.9,1.2848]
[1749173417480,5.42655047,2424.0,2423.9,1.2848]
[1749173417782,3.2078,2424.0,2423.9,2.10953]
[1749173418082,4.60209206,2424.0,2423.9,2.10953]
[1749173419084,0.83081003,2424.3,2424.1,0.82465]
[1749173419378,2.21927835,2424.2,2424.1,4.98]
[1749173419584,2.21927835,2424.2,2424.1,6.2789]
[1749173419889,0.82466,2424.1,2424.0,4.98]
[1749173420182,2.21930835,2424.1,2424.0,4.98]
[1749173429387,1.39464835,2424.1,2424.0,5.8047]
[1749173429688,2.21930835,2424.1,2424.0,4.98]
[1749173429986,1.39464835,2424.1,2424.0,5.8047]
[1749173430493,0.00619003,2424.3,2424.2,0.82463]
[1749173430682,1.40229413,2424.3,2424.2,0.82463]
[1749173430882,1.40229413,2424.3,2424.2,1.3202]
[1749173431083,1.40229413,2424.3,2424.1,0.6487]
[1749173431282,0.82466,2424.1,2424.0,4.979]
[1749173431491,2.2207641,2424.1,2424.0,4.979]
[1749173434794,1.3961041,2424.1,2424.0,4.979]
[1749173435091,1.3961041,2424.1,2424.0,6.3428]
[1749173435289,2.8611641,2424.1,2424.0,6.3428]
[1749173435692,2.0365041,2424.1,2424.0,7.1675]
[1749173435891,1.3961041,2424.1,2424.0,7.1675]
[1749173436089,1.39813455,2424.1,2424.0,7.1675]
[1749173436284,0.00619003,2424.3,2424.2,0.82463]
[1749173436484,1.40421619,2424.3,2424.2,0.82463]
[1749173436689,1.40421619,2424.3,2424.2,2.76413]
[1749173437096,0.00619003,2424.3,2424.2,7.76413]
[1749173439402,0.00619003,2424.3,2424.2,2.76413]
[1749173440692,3.2078,2424.8,2424.7,0.82446]
[1749173440904,1.39480595,2424.8,2424.7,5.79746]
[1749173441598,0.64449003,2425.0,2424.8,0.8244]
[1749173441800,0.64449003,2425.0,2424.9,2.21249]
[1749173442100,2.86305628,2425.0,2424.9,1.3881]
[1749173444603,2.03869628,2425.0,2424.9,2.21249]
[1749173446103,1.40039628,2425.0,2424.9,2.21249]
[1749173446297,0.00619003,2425.0,2424.9,2.21249]
[1749173450106,0.00619003,2425.0,2424.9,0.82439]
[1749173453201,0.82442,2424.8,2424.7,4.973]
[1749173453501,1.45811,2424.9,2424.7,5.79744]
[1749173453803,1.45811,2424.9,2424.7,5.79746]
[1749173453999,0.6337,2424.9,2424.8,0.82442]
[1749173454210,2.02459208,2424.9,2424.8,0.82442]
[1749173454600,0.6337,2424.9,2424.8,0.82442]
[1749173454906,0.6337,2424.9,2424.8,2.21232]
[1749173457706,1.45809,2424.9,2424.8,2.21232]
[1749173458512,2.85105354,2424.9,2424.8,2.21232]
[1749173458901,2.02666354,2424.9,2424.8,2.21232]
[1749173459106,0.6337,2424.9,2424.8,2.21232]
[1749173459914,3.21399003,2425.0,2424.9,0.82439]
[1749173460111,4.60730749,2425.0,2424.9,2.18889]
[1749173460521,3e-08,2425.0,2424.9,5.39669]
[1749173460716,3e-08,2425.0,2424.9,10.39669]
[1749173461306,3e-08,2425.0,2424.9,5.39669]
[1749173461513,3e-08,2425.0,2424.9,4.5723]
[1749173461811,0.66300003,2425.0,2424.9,5.39669]
[1749173462407,0.66300003,2425.0,2424.8,0.82441]
[1749173462408,1.48736003,2425.0,2424.8,0.82441]
[1749173462617,0.66300003,2425.0,2424.7,34.052]
[1749173462813,0.66300003,2425.0,2424.7,24.941]
[1749173462814,0.82442,2424.8,2424.7,24.941]
[1749173463112,2.21751198,2424.8,2424.7,4.972]
[1749173463306,0.82449,2424.6,2424.5,0.00619003]
[1749173463505,2.21758198,2424.6,2424.5,0.00619003]
[1749173464716,1.39309198,2424.6,2424.5,0.83072003]
[1749173464916,1.39309198,2424.6,2424.5,0.00619003]
[1749173465119,2.09179198,2424.6,2424.5,0.00619003]
[1749173465313,2.09179198,2424.6,2424.5,0.83072003]
[1749173469625,1.39309198,2424.6,2424.5,0.83072003]
[1749173469824,3e-08,2425.0,2424.6,2.0612]
[1749173470021,3e-08,2425.0,2424.7,9.4926]
[1749173470219,3e-08,2425.0,2424.9,0.82439]
[1749173470620,3e-08,2425.0,2424.9,5.82439]
[1749173471922,3e-08,2425.0,2424.9,9.96339]
[1749173472519,3e-08,2425.0,2424.9,34.90539]
[1749173476520,3e-08,2425.0,2424.9,34.87139]
[1749173478223,3e-08,2425.0,2424.9,39.87139]
[1749173478423,3e-08,2425.0,2424.9,34.87139]
[1749173484727,3e-08,2425.0,2424.9,29.90539]
[1749173484922,3e-08,2425.0,2424.9,34.87139]
[1749173486328,3e-08,2425.0,2424.9,29.908]
[1749173486632,3e-08,2425.0,2424.9,30.73239]
[1749173486833,0.67250003,2425.0,2424.9,30.73239]
[1749173487031,0.67250003,2425.0,2424.9,29.908]
[1749173487231,1.49686003,2425.0,2424.9,29.908]
[1749173487930,5.67250003,2425.0,2424.5,4.97219003]
[1749173488123,0.82444,2424.8,2424.5,0.83070003]
[1749173488324,1.2671,2424.7,2424.5,0.83070003]
[1749173488832,0.6725,2424.6,2424.5,0.83070003]
[1749173490728,0.6725,2424.6,2424.5,0.00619003]
[1749173490934,1.49699,2424.6,2424.5,0.00619003]
[1749173491235,1.9797,2424.6,2424.5,0.00619003]
[1749173491935,1.9797,2424.6,2424.5,0.83072003]
[1749173492133,1.9797,2424.6,2424.5,0.00619003]
[1749173493235,1.9797,2424.6,2424.5,0.83072003]
[1749173493642,0.6725,2424.6,2424.5,0.83072003]
[1749173499136,0.6725,2424.6,2424.5,2.21372003]
[1749173499735,0.6725,2424.6,2424.5,0.83072003]
[1749173501337,0.6725,2424.6,2424.5,2.10142003]
[1749173505141,0.6575,2424.9,2424.8,0.82442]
[1749173505341,3e-08,2425.0,2424.8,4.962]
[1749173505552,0.66230003,2425.0,2424.9,0.82439]
[1749173505842,3e-08,2425.0,2424.9,0.82439]
[1749173506047,3e-08,2425.0,2424.9,2.87539]
[1749173506339,3e-08,2425.0,2424.9,7.01439]
[1749173508048,3e-08,2425.0,2424.9,6.31739]
[1749173508548,3e-08,2425.0,2424.9,11.27939]
[1749173509734,3e-08,2425.0,2424.9,5.78639]
[1749173511950,3e-08,2425.0,2424.8,5.78641]
[1749173512138,0.82437003,2425.0,2424.8,5.78641]
[1749173512339,0.661,2424.9,2424.7,7.3468]
[1749173512539,4.85864859,2424.9,2424.7,8.17125]
[1749173512749,1.42193859,2424.8,2424.7,8.17125]
[1749173514748,1.42193859,2424.8,2424.7,4.03225]
[1749173515745,1.42193859,2424.8,2424.7,3.2078]
[1749173515949,1.42193859,2424.8,2424.7,4.03226]
[1749173516350,2.24635859,2424.8,2424.7,3.2078]
[1749173517052,1.42193859,2424.8,2424.7,4.03226]
[1749173518759,1.42193859,2424.8,2424.7,0.82446]
[1749173523762,3e-08,2425.0,2424.9,0.82439]
[1749173523957,3e-08,2425.0,2424.9,5.78239]
[1749173524560,3e-08,2425.0,2424.9,7.11419]
[1749173525460,1.44891703,2425.0,2424.9,7.11419]
[1749173526969,2.27327703,2425.0,2424.9,4.958]
[1749173527159,1.44891703,2425.0,2424.9,5.78239]
[1749173529670,3e-08,2425.0,2424.9,7.79559]
[1749173532473,3e-08,2425.0,2424.9,11.93459]
[1749173533874,3e-08,2425.0,2424.9,9.92039]
[1749173534071,0.82436003,2425.0,2424.9,9.096]
[1749173534379,1.47246003,2425.0,2424.9,9.096]
[1749173534675,2.92186793,2425.0,2424.9,9.096]
[1749173534973,2.92186793,2425.0,2424.9,4.139]
[1749173535173,4.23896793,2425.0,2424.9,4.139]
[1749173538475,4.23896793,2425.0,2424.6,4.957]
[1749173538476,0.8244,2424.9,2424.7,0.82444]
[1749173538679,1.4494079,2424.8,2424.7,0.82444]
[1749173538980,0.64810003,2425.0,2424.7,0.82444]
[1749173538981,0.64810003,2425.0,2424.7,1.3779]
[1749173539275,1.4508305,2424.9,2424.8,0.82442]
[1749173541779,1.4508305,2424.9,2424.7,2.20233]
[1749173542079,1.4508305,2424.8,2424.7,2.20236]
[1749173542773,1.4508305,2424.8,2424.6,4.957]
[1749173542774,2.2752605,2424.8,2424.6,5.78147]
[1749173542977,0.82443,2424.8,2424.6,5.78148]
[1749173543270,0.71943354,2425.0,2424.6,4.957]
[1749173543476,0.82444,2424.8,2424.6,4.957]
[1749173543674,0.82444,2424.8,2424.6,5.78149]
[1749173543879,2.11671,2424.9,2424.6,5.78149]
[1749173544079,1.45206743,2424.8,2424.6,5.78149]
[1749173544376,2.11671,2424.9,2424.6,5.78149]
[1749173544576,1.45211773,2424.8,2424.7,0.82446]
[1749173545380,1.45211773,2424.8,2424.6,5.78146]
[1749173545581,2.11671,2424.9,2424.7,0.82446]
[1749173545774,1.45212612,2424.8,2424.7,0.82446]
[1749173546276,5.48437612,2424.8,2424.5,0.00619003]
[1749173546578,2.15022612,2424.7,2424.5,0.00619003]
[1749173546779,1.45212612,2424.6,2424.5,0.00619003]
[1749173546980,2.13092612,2424.6,2424.5,0.00619003]
[1749173547281,2.13092612,2424.6,2424.5,0.83072003]
[1749173552383,1.45212612,2424.6,2424.5,0.83072003]
[1749173552681,0.66780003,2425.0,2424.9,0.82439]
[1749173552883,2.15135478,2425.0,2424.9,5.78239]
[1749173553184,1.48355478,2425.0,2424.9,5.78239]
[1749173553583,1.48355478,2425.0,2424.9,7.75089]
[1749173555890,3e-08,2425.0,2424.9,7.75089]
[1749173556085,1.49179893,2425.0,2424.9,7.75089]
[1749173556286,3e-08,2425.0,2424.9,7.75089]
[1749173557686,3e-08,2425.0,2424.9,11.88989]
[1749173560387,3e-08,2425.0,2424.9,16.88989]
[1749173561194,3e-08,2425.0,2424.9,11.88989]
[1749173564791,3e-08,2425.0,2424.9,11.88489]
[1749173564985,0.66190003,2425.0,2424.9,9.91639]
[1749173565396,0.66190003,2425.0,2424.9,5.77739]
[1749173565795,3e-08,2425.0,2424.9,5.77739]
[1749173566096,0.07133354,2425.0,2424.9,5.77739]
[1749173567192,3e-08,2425.0,2424.9,5.77739]
[1749173569190,0.07133354,2425.0,2424.9,5.77739]
[1749173571095,0.6492,2425.6,2425.5,0.82419]
[1749173571491,2.13929889,2425.6,2425.5,0.82419]
[1749173577199,2.13929889,2425.6,2425.4,5.7772]
[1749173577398,1.49098031,2425.5,2425.4,5.7772]
[1749173578900,1.49098031,2425.5,2425.4,4.953]
[1749173579201,1.49098031,2425.5,2424.8,4.952]
[1749173579202,9.69878031,2425.5,2424.8,4.952]
[1749173579408,0.89570351,2425.0,2424.8,4.952]
[1749173579599,2.82988031,2424.9,2424.8,4.952]
[1749173579799,3.65427031,2424.9,2424.8,4.952]
[1749173579994,3.65427031,2424.9,2424.7,8.1598]
[1749173580302,1.49098031,2424.8,2424.7,8.1598]
[1749173580700,1.49098031,2424.8,2424.7,8.98426]
[1749173581901,1.49098031,2424.8,2424.7,3.2078]
[1749173582208,0.82446,2424.7,2424.5,0.83070003]
[1749173582500,1.49098031,2424.6,2424.5,0.83072003]
[1749173582705,1.49098031,2424.6,2424.5,0.00619003]
[1749173583208,1.49098031,2424.6,2424.5,0.83072003]
[1749173583698,1.49098031,2424.7,2424.5,0.83072003]
[1749173583910,1.49098031,2424.6,2424.5,0.00619003]
[1749173584315,1.49233005,2424.6,2424.5,0.00619003]
[1749173584798,1.49233005,2424.6,2424.5,0.83072003]
[1749173585209,1.49233005,2424.6,2424.5,0.00619003]
[1749173585507,4.5562,2424.8,2424.5,0.00619003]
[1749173585805,0.82458,2424.4,2424.1,5.77264]
[1749173586000,3.2078,2424.2,2424.1,5.77264]
[1749173586201,4.69926223,2424.2,2424.1,4.948]
[1749173586401,6.01946223,2424.2,2424.1,5.77266]
[1749173586603,6.84409223,2424.2,2424.1,4.948]
[1749173586798,6.01946223,2424.2,2423.9,0.00619003]
[1749173587001,1.49146223,2424.1,2423.4,3.2078]
[1749173587304,1.49146223,2424.1,2423.3,0.82491]
[1749173587305,3.2078,2423.8,2423.3,0.82493]
[1749173587606,3.49056223,2423.7,2423.2,4.949]
[1749173587798,2.82392,2423.7,2423.3,0.82492]
[1749173588004,2.82392,2423.7,2423.3,0.83111003]
[1749173588608,0.82484,2423.6,2423.3,0.83111003]
[1749173588798,1.3783,2423.6,2423.3,0.83111003]
[1749173589006,1.3783,2423.6,2423.4,0.82488]
[1749173589503,1.3783,2423.6,2423.3,0.83111003]
[1749173589810,2.20314,2423.6,2423.3,0.00619003]
[1749173590105,3.2078,2423.5,2423.3,0.00619003]
[1749173590313,0.8249,2423.4,2423.3,0.00619003]
[1749173590908,2.2032,2423.4,2423.3,0.00619003]
[1749173593112,0.8249,2423.4,2423.3,0.00619003]
[1749173594908,0.82508,2422.9,2422.7,3.2078]
[1749173595115,8.33248,2423.4,2422.3,0.6537]
[1749173595116,0.82518,2422.6,2422.3,1.47896]
[1749173595411,0.82518,2422.6,2422.3,5.77526]
[1749173595615,3.8937,2422.8,2422.3,5.77526]
[1749173595616,1.49496,2422.7,2422.3,5.77526]
[1749173595810,1.49496,2422.7,2422.3,7.12676]
[1749173596014,1.50115003,2422.7,2422.3,7.13295003]
[1749173596314,0.67599003,2422.7,2422.4,0.82522]
[1749173596617,1.50114003,2422.7,2422.4,2.17672]
[1749173596911,0.67599003,2422.7,2422.4,2.17672]
[1749173597115,0.67599003,2422.7,2422.5,0.8252]
[1749173597706,4.70894003,2422.7,2422.4,2.17673]
[1749173597910,3.88379003,2422.7,2422.5,0.8252]
[1749173598116,3.88379003,2422.7,2422.4,2.17672]
[1749173598314,4.70895003,2422.7,2422.4,2.17672]
[1749173599518,4.70895003,2422.7,2422.5,0.8252]
[1749173599519,0.67599003,2422.7,2422.5,0.8252]
[1749173599911,1.50113003,2422.7,2422.4,2.17672]
[1749173600811,0.82522,2422.5,2422.3,4.95619003]
[1749173601012,4.03304,2422.4,2422.3,4.95619003]
[1749173601212,2.0632,2422.3,2421.4,4.46694024]
[1749173601412,2.0632,2422.3,2421.1,6.8994]
[1749173601413,3.2078,2421.8,2421.1,6.8994]
[1749173601607,3.2078,2421.5,2421.1,7.72506]
[1749173601812,4.03337,2421.5,2421.1,7.72507]
[1749173602013,4.03337,2421.5,2421.2,0.82565]
[1749173602215,3.2078,2421.5,2421.1,6.9035267]
[1749173602414,0.8256,2421.4,2421.1,7.7292067]
[1749173602614,3.2078,2421.5,2421.1,7.7292067]
[1749173602615,3.21399003,2421.5,2421.3,0.8256]
[1749173602915,3.21399003,2421.5,2421.4,0.82558]
[1749173603516,3.21399003,2421.5,2421.4,10.77858]
[1749173603517,0.00619003,2421.5,2421.4,10.77858]
[1749173604113,0.00619003,2421.5,2421.4,11.44708]
[1749173604313,0.00619003,2421.5,2421.4,6.44708]
[1749173604522,0.00619003,2421.5,2421.4,11.44708]
[1749173605412,0.00619003,2421.5,2421.4,6.44708]
[1749173606015,3.2078,2422.2,2422.1,0.82534]
[1749173606210,1.3476,2422.4,2422.3,0.82527]
[1749173606211,0.6628,2422.4,2422.3,0.82527]
[1749173606417,3.2078,2422.7,2422.6,0.82517]